[Event "Titled Tuesday Blitz June 28 Early 2022"]
[White "Cherniaiev, Tykhon"]
[Black "Priyanka Nutakki"]
[WhiteFideId "14182360"]
[BlackFideId "25049615"]
[WhiteElo "2289"]
[BlackElo "1912"]
[Result "1-0"]
[Round "02"]
[TimeControl "180+1"]
[Date "2022.06.28"]
[WhiteClock "0:01:22"]
[BlackClock "0:00:11"]

1. Nf3 {[%clk 0:03:00]}  d5 {[%clk 0:02:59]} 2. d4 {[%clk 0:02:59]}  Nf6 {[%clk 0:02:59]} 3. c4 {[%clk 0:02:59]}  e6 {[%clk 0:02:58]} 4. g3 {[%clk 0:02:59]}  Be7 {[%clk 0:02:54]} 5. Bg2 {[%clk 0:03:00]}  O-O {[%clk 0:02:54]} 6. O-O {[%clk 0:03:00]}  dxc4 {[%clk 0:02:54]} 7. Qc2 {[%clk 0:03:01]}  a6 {[%clk 0:02:53]} 8. Qxc4 {[%clk 0:03:00]}  b5 {[%clk 0:02:53]} 9. Qc2 {[%clk 0:03:01]}  Bb7 {[%clk 0:02:53]} 10. Bg5 {[%clk 0:03:01]}  Nbd7 {[%clk 0:02:47]} 11. Nbd2 {[%clk 0:03:02]}  c5 {[%clk 0:02:38]} 12. Bxf6 {[%clk 0:03:00]}  Bxf6 {[%clk 0:02:23]} 13. dxc5 {[%clk 0:02:59]}  Rc8 {[%clk 0:02:22]} 14. Nb3 {[%clk 0:02:52]}  Bd5 {[%clk 0:02:14]} 15. Rfd1 {[%clk 0:02:46]}  Qe7 {[%clk 0:02:07]} 16. Rac1 {[%clk 0:02:41]}  Bxb3 {[%clk 0:02:03]} 17. Qxb3 {[%clk 0:02:41]}  Nxc5 {[%clk 0:01:49]} 18. Qa3 {[%clk 0:02:41]}  Na4 {[%clk 0:01:48]} 19. Qxe7 {[%clk 0:02:39]}  Bxe7 {[%clk 0:01:48]} 20. Rxc8 {[%clk 0:02:18]}  Rxc8 {[%clk 0:01:48]} 21. b3 {[%clk 0:02:17]}  Nc3 {[%clk 0:01:42]} 22. Rd2 {[%clk 0:02:16]}  g5 {[%clk 0:01:28]} 23. Nd4 {[%clk 0:02:11]}  Rc7 {[%clk 0:01:19]} 24. Nc6 {[%clk 0:02:06]}  Bf6 {[%clk 0:01:16]} 25. e3 {[%clk 0:02:01]}  Kg7 {[%clk 0:01:14]} 26. h3 {[%clk 0:01:58]}  h5 {[%clk 0:01:13]} 27. Kh2 {[%clk 0:01:51]}  a5 {[%clk 0:00:59]} 28. Nxa5 {[%clk 0:01:46]}  Ra7 {[%clk 0:00:58]} 29. b4 {[%clk 0:01:46]}  Kg6 {[%clk 0:00:42]} 30. Bf1 {[%clk 0:01:41]}  Bg7 {[%clk 0:00:36]} 31. Bd3+ {[%clk 0:01:36]}  f5 {[%clk 0:00:33]} 32. Kg2 {[%clk 0:01:34]}  Nd5 {[%clk 0:00:19]} 33. a3 {[%clk 0:01:32]}  Kf7 {[%clk 0:00:18]} 34. Bxb5 {[%clk 0:01:30]}  Bc3 {[%clk 0:00:16]} 35. Rd3 {[%clk 0:01:27]}  Bb2 {[%clk 0:00:14]} 36. Bc4 {[%clk 0:01:24]}  Nb6 {[%clk 0:00:14]} 37. Ba2 {[%clk 0:01:23]}  Ke7 {[%clk 0:00:11]} 38. Nc6+ {[%clk 0:01:22]} 1-0


[Site "https://www.chess.com"]

[Event "Titled Tuesday Blitz June 28 Early 2022"]
[White "Ciuffoletti, Paolo"]
[Black "Kalogridis, Antonios"]
[WhiteFideId "807630"]
[BlackFideId "25833901"]
[WhiteElo "2143"]
[BlackElo "1596"]
[Result "1-0"]
[Round "02"]
[TimeControl "180+1"]
[Date "2022.06.28"]
[WhiteClock "0:00:03"]
[BlackClock "0:00:07"]

1. e4 {[%clk 0:03:00]}  a6 {[%clk 0:03:00]} 2. d4 {[%clk 0:03:00]}  c5 {[%clk 0:03:01]} 3. Nf3 {[%clk 0:02:59]}  cxd4 {[%clk 0:02:58]} 4. c3 {[%clk 0:02:59]}  dxc3 {[%clk 0:02:54]} 5. Nxc3 {[%clk 0:02:58]}  Nc6 {[%clk 0:02:54]} 6. Bc4 {[%clk 0:02:57]}  e6 {[%clk 0:02:53]} 7. O-O {[%clk 0:02:57]}  Bb4 {[%clk 0:02:53]} 8. Qe2 {[%clk 0:02:52]}  Nge7 {[%clk 0:02:52]} 9. Bg5 {[%clk 0:02:49]}  O-O {[%clk 0:02:50]} 10. Rac1 {[%clk 0:02:48]}  b5 {[%clk 0:02:45]} 11. Bd3 {[%clk 0:02:42]}  Qb6 {[%clk 0:02:42]} 12. e5 {[%clk 0:02:35]}  Ng6 {[%clk 0:02:33]} 13. h4 {[%clk 0:02:26]}  Nd4 {[%clk 0:02:30]} 14. Nxd4 {[%clk 0:02:19]}  Qxd4 {[%clk 0:02:31]} 15. Rfd1 {[%clk 0:02:02]}  Bxc3 {[%clk 0:02:20]} 16. Bxg6 {[%clk 0:01:52]}  Qxe5 {[%clk 0:02:19]} 17. Bxh7+ {[%clk 0:01:28]}  Kxh7 {[%clk 0:02:17]} 18. Qd3+ {[%clk 0:01:25]}  Kg8 {[%clk 0:02:11]} 19. Rxc3 {[%clk 0:01:24]}  d5 {[%clk 0:02:02]} 20. Rdc1 {[%clk 0:01:17]}  Bb7 {[%clk 0:01:52]} 21. Rc7 {[%clk 0:01:00]}  Rab8 {[%clk 0:01:48]} 22. R1c2 {[%clk 0:00:55]}  d4 {[%clk 0:01:26]} 23. Rd7 {[%clk 0:00:43]}  Be4 {[%clk 0:01:19]} 24. Qd2 {[%clk 0:00:32]}  Bxc2 {[%clk 0:01:16]} 25. Bf4 {[%clk 0:00:32]}  Qe4 {[%clk 0:01:04]} 26. Rxd4 {[%clk 0:00:23]}  Qg6 {[%clk 0:00:57]} 27. h5 {[%clk 0:00:15]}  Qf5 {[%clk 0:00:46]} 28. h6 {[%clk 0:00:15]}  Rbc8 {[%clk 0:00:30]} 29. hxg7 {[%clk 0:00:13]}  Rfe8 {[%clk 0:00:20]} 30. Bd6 {[%clk 0:00:12]}  Be4 {[%clk 0:00:15]} 31. Qh6 {[%clk 0:00:09]}  Qh7 {[%clk 0:00:15]} 32. Qf4 {[%clk 0:00:09]}  Bf5 {[%clk 0:00:14]} 33. Be5 {[%clk 0:00:08]}  Rc2 {[%clk 0:00:13]} 34. f3 {[%clk 0:00:04]}  Rec8 {[%clk 0:00:11]} 35. Qg5 {[%clk 0:00:03]}  Rc1+ {[%clk 0:00:11]} 36. Kf2 {[%clk 0:00:04]}  Qh1 {[%clk 0:00:08]} 37. Rd8+ {[%clk 0:00:02]}  Rxd8 {[%clk 0:00:08]} 38. Qxd8+ {[%clk 0:00:02]}  Kh7 {[%clk 0:00:07]} 39. g8=Q+ {[%clk 0:00:02]}  Kh6 {[%clk 0:00:08]} 40. Qf6+ {[%clk 0:00:02]}  Bg6 {[%clk 0:00:07]} 41. Qgh8# {[%clk 0:00:03]} 1-0


[Site "https://www.chess.com"]

[Event "Titled Tuesday Blitz June 28 Early 2022"]
[White "Cruz, Cristhian"]
[Black "Kjartansson, David"]
[WhiteFideId "3801969"]
[BlackFideId "2301130"]
[WhiteElo "2497"]
[BlackElo "2382"]
[Result "1/2-1/2"]
[Round "02"]
[TimeControl "180+1"]
[Date "2022.06.28"]
[WhiteClock "0:00:29"]
[BlackClock "0:00:50"]

1. c4 {[%clk 0:03:00]}  c5 {[%clk 0:02:54]} 2. Nf3 {[%clk 0:02:59]}  Nc6 {[%clk 0:02:51]} 3. Nc3 {[%clk 0:02:56]}  g6 {[%clk 0:02:48]} 4. e3 {[%clk 0:02:54]}  Nf6 {[%clk 0:02:47]} 5. d4 {[%clk 0:02:53]}  cxd4 {[%clk 0:02:46]} 6. exd4 {[%clk 0:02:54]}  d5 {[%clk 0:02:47]} 7. cxd5 {[%clk 0:02:55]}  Nxd5 {[%clk 0:02:42]} 8. Qb3 {[%clk 0:02:53]}  Nxc3 {[%clk 0:02:29]} 9. Bc4 {[%clk 0:02:52]}  e6 {[%clk 0:02:21]} 10. bxc3 {[%clk 0:02:50]}  Bg7 {[%clk 0:02:21]} 11. Ba3 {[%clk 0:02:49]}  Bf8 {[%clk 0:02:21]} 12. Bc1 {[%clk 0:02:43]}  Bg7 {[%clk 0:02:13]} 13. Ba3 {[%clk 0:02:42]}  Bf8 {[%clk 0:02:12]} 14. Bxf8 {[%clk 0:02:43]}  Kxf8 {[%clk 0:02:11]} 15. Bb5 {[%clk 0:02:39]}  Bd7 {[%clk 0:02:07]} 16. h4 {[%clk 0:02:36]}  h5 {[%clk 0:02:07]} 17. O-O {[%clk 0:02:35]}  Kg7 {[%clk 0:02:07]} 18. Bd3 {[%clk 0:02:24]}  Na5 {[%clk 0:02:06]} 19. Qb2 {[%clk 0:02:23]}  b6 {[%clk 0:02:05]} 20. Ne5 {[%clk 0:02:07]}  Rc8 {[%clk 0:02:03]} 21. c4 {[%clk 0:02:04]}  Be8 {[%clk 0:02:01]} 22. d5 {[%clk 0:01:52]}  f6 {[%clk 0:02:00]} 23. Nf3 {[%clk 0:01:47]}  Bf7 {[%clk 0:01:59]} 24. Rad1 {[%clk 0:01:43]}  exd5 {[%clk 0:01:54]} 25. cxd5 {[%clk 0:01:43]}  Rc5 {[%clk 0:01:52]} 26. d6 {[%clk 0:01:24]}  Rd5 {[%clk 0:01:52]} 27. Bc2 {[%clk 0:01:08]}  Qxd6 {[%clk 0:01:49]} 28. Rxd5 {[%clk 0:01:08]}  Qxd5 {[%clk 0:01:46]} 29. Rd1 {[%clk 0:01:07]}  Qc5 {[%clk 0:01:43]} 30. Rd7 {[%clk 0:01:05]}  Re8 {[%clk 0:01:40]} 31. Rxa7 {[%clk 0:00:47]}  Nc6 {[%clk 0:01:34]} 32. Rc7 {[%clk 0:00:46]}  Re7 {[%clk 0:01:31]} 33. Rxe7 {[%clk 0:00:44]}  Nxe7 {[%clk 0:01:30]} 34. Bb3 {[%clk 0:00:44]}  Qb4 {[%clk 0:01:27]} 35. Qc2 {[%clk 0:00:44]}  Bxb3 {[%clk 0:01:25]} 36. axb3 {[%clk 0:00:44]}  Qc5 {[%clk 0:01:24]} 37. Qe4 {[%clk 0:00:42]}  Kf7 {[%clk 0:01:21]} 38. Qf4 {[%clk 0:00:39]}  Nf5 {[%clk 0:01:16]} 39. Qb8 {[%clk 0:00:37]}  Qd6 {[%clk 0:01:12]} 40. Qb7+ {[%clk 0:00:36]}  Ne7 {[%clk 0:01:11]} 41. Qe4 {[%clk 0:00:35]}  Qd5 {[%clk 0:01:09]} 42. Qe3 {[%clk 0:00:35]}  b5 {[%clk 0:01:07]} 43. Nd4 {[%clk 0:00:34]}  b4 {[%clk 0:01:00]} 44. g3 {[%clk 0:00:31]}  Qe5 {[%clk 0:00:56]} 45. Qd3 {[%clk 0:00:31]}  Nd5 {[%clk 0:00:52]} 46. Qc4 {[%clk 0:00:29]}  Qe1+ {[%clk 0:00:50]} 47. Kg2 {[%clk 0:00:28]}  Qe4+ {[%clk 0:00:50]} 48. Kg1 {[%clk 0:00:29]}  Qe1+ {[%clk 0:00:49]} 49. Kg2 {[%clk 0:00:29]}  Qe4+ {[%clk 0:00:50]} 50. Kg1 {[%clk 0:00:29]}  Qe1+ {[%clk 0:00:50]} 1/2-1/2


[Site "https://www.chess.com"]

[Event "Titled Tuesday Blitz June 28 Early 2022"]
[White "Csonka, Balazs"]
[Black "McCoy, Owen"]
[WhiteFideId "742910"]
[BlackFideId "30924502"]
[WhiteElo "2404"]
[BlackElo "2540"]
[Result "1-0"]
[Round "02"]
[TimeControl "180+1"]
[Date "2022.06.28"]
[WhiteClock "0:00:05"]
[BlackClock "0:00:02"]

1. Nf3 {[%clk 0:03:00]}  d5 {[%clk 0:02:58]} 2. c4 {[%clk 0:02:59]}  c6 {[%clk 0:02:58]} 3. d4 {[%clk 0:02:58]}  Nf6 {[%clk 0:02:57]} 4. Nc3 {[%clk 0:02:57]}  dxc4 {[%clk 0:02:56]} 5. a4 {[%clk 0:02:57]}  Bf5 {[%clk 0:02:54]} 6. Nh4 {[%clk 0:02:56]}  e6 {[%clk 0:02:44]} 7. Nxf5 {[%clk 0:02:54]}  exf5 {[%clk 0:02:44]} 8. e3 {[%clk 0:02:55]}  Bb4 {[%clk 0:02:37]} 9. Bxc4 {[%clk 0:02:55]}  O-O {[%clk 0:02:36]} 10. Qf3 {[%clk 0:02:31]}  Ne4 {[%clk 0:02:29]} 11. O-O {[%clk 0:02:23]}  Nxc3 {[%clk 0:02:24]} 12. bxc3 {[%clk 0:02:24]}  Bxc3 {[%clk 0:02:25]} 13. Rb1 {[%clk 0:02:13]}  Qd7 {[%clk 0:02:23]} 14. Ba3 {[%clk 0:02:11]}  Re8 {[%clk 0:02:13]} 15. Rfc1 {[%clk 0:02:09]}  Ba5 {[%clk 0:02:12]} 16. d5 {[%clk 0:01:38]}  g6 {[%clk 0:01:53]} 17. h4 {[%clk 0:01:31]}  h5 {[%clk 0:01:31]} 18. Rd1 {[%clk 0:01:07]}  Bb6 {[%clk 0:00:50]} 19. Qg3 {[%clk 0:00:29]}  Re4 {[%clk 0:00:13]} 20. dxc6 {[%clk 0:00:22]}  Qxc6 {[%clk 0:00:13]} 21. Bd5 {[%clk 0:00:18]}  Qf6 {[%clk 0:00:08]} 22. Bb2 {[%clk 0:00:11]}  Qe7 {[%clk 0:00:03]} 23. Qxg6+ {[%clk 0:00:08]}  Kf8 {[%clk 0:00:04]} 24. Qg7+ {[%clk 0:00:07]}  Ke8 {[%clk 0:00:04]} 25. Bxe4 {[%clk 0:00:05]}  fxe4 {[%clk 0:00:03]} 26. Bf6 {[%clk 0:00:05]}  Qf8 {[%clk 0:00:02]} 27. Rxb6 {[%clk 0:00:05]}  Qxg7 {[%clk 0:00:02]} 28. Rd8# {[%clk 0:00:05]} 1-0


[Site "https://www.chess.com"]

[Event "Titled Tuesday Blitz June 28 Early 2022"]
[White "D`Arruda, Ricardo D."]
[Black "Kapitsyn, Mark"]
[WhiteFideId "100692"]
[BlackFideId "4116240"]
[WhiteElo "2490"]
[BlackElo "2293"]
[Result "1-0"]
[Round "02"]
[TimeControl "180+1"]
[Date "2022.06.28"]
[WhiteClock "0:00:28"]
[BlackClock "0:00:06"]

1. Nf3 {[%clk 0:03:00]}  c5 {[%clk 0:02:58]} 2. b3 {[%clk 0:02:59]}  d5 {[%clk 0:02:57]} 3. Bb2 {[%clk 0:02:59]}  f6 {[%clk 0:02:57]} 4. e3 {[%clk 0:02:58]}  e5 {[%clk 0:02:57]} 5. d4 {[%clk 0:02:58]}  cxd4 {[%clk 0:02:57]} 6. exd4 {[%clk 0:02:59]}  e4 {[%clk 0:02:58]} 7. Nfd2 {[%clk 0:02:59]}  f5 {[%clk 0:02:59]} 8. c4 {[%clk 0:03:00]}  Nf6 {[%clk 0:02:55]} 9. Nc3 {[%clk 0:03:00]}  Be6 {[%clk 0:02:38]} 10. cxd5 {[%clk 0:02:54]}  Nxd5 {[%clk 0:02:38]} 11. Bc4 {[%clk 0:02:48]}  Bb4 {[%clk 0:02:31]} 12. Nxd5 {[%clk 0:02:40]}  Bxd5 {[%clk 0:02:30]} 13. O-O {[%clk 0:02:40]}  O-O {[%clk 0:02:24]} 14. Bxd5+ {[%clk 0:02:31]}  Qxd5 {[%clk 0:02:22]} 15. Nc4 {[%clk 0:02:32]}  Nd7 {[%clk 0:02:02]} 16. f3 {[%clk 0:02:29]}  Nf6 {[%clk 0:02:01]} 17. fxe4 {[%clk 0:02:12]}  fxe4 {[%clk 0:01:33]} 18. Ne3 {[%clk 0:02:08]}  Qg5 {[%clk 0:01:33]} 19. Qe2 {[%clk 0:02:00]}  Rac8 {[%clk 0:00:51]} 20. Rf5 {[%clk 0:01:55]}  Qg6 {[%clk 0:00:51]} 21. Raf1 {[%clk 0:01:53]}  Bd6 {[%clk 0:00:42]} 22. Nc4 {[%clk 0:01:44]}  Bxh2+ {[%clk 0:00:32]} 23. Kh1 {[%clk 0:01:30]}  Qh6 {[%clk 0:00:27]} 24. g4 {[%clk 0:01:03]}  Bg3+ {[%clk 0:00:22]} 25. Kg1 {[%clk 0:01:02]}  Qg6 {[%clk 0:00:06]} 26. g5 {[%clk 0:00:51]}  Nh5 {[%clk 0:00:05]} 27. Rxf8+ {[%clk 0:00:46]}  Rxf8 {[%clk 0:00:06]} 28. Rxf8+ {[%clk 0:00:45]}  Kxf8 {[%clk 0:00:07]} 29. Qg4 {[%clk 0:00:41]}  Bc7 {[%clk 0:00:04]} 30. Qc8+ {[%clk 0:00:33]}  Qe8 {[%clk 0:00:05]} 31. Qxc7 {[%clk 0:00:33]}  e3 {[%clk 0:00:04]} 32. Ba3+ {[%clk 0:00:32]}  Kg8 {[%clk 0:00:03]} 33. Qe7 {[%clk 0:00:27]}  Qxe7 {[%clk 0:00:01]} 34. Bxe7 {[%clk 0:00:28]}  e2 {[%clk 0:00:01]} 35. Kf2 {[%clk 0:00:28]}  Nf4 {[%clk 0:00:01]} 36. Bd6 {[%clk 0:00:27]}  e1=Q+ {[%clk 0:00:01]} 37. Kxe1 {[%clk 0:00:27]}  Nd3+ {[%clk 0:00:02]} 38. Kd2 {[%clk 0:00:27]}  Nf2 {[%clk 0:00:02]} 39. Ke3 {[%clk 0:00:26]}  b5 {[%clk 0:00:02]} 40. Kxf2 {[%clk 0:00:25]}  bxc4 {[%clk 0:00:02]} 41. bxc4 {[%clk 0:00:26]}  Kf7 {[%clk 0:00:03]} 42. d5 {[%clk 0:00:26]}  Ke8 {[%clk 0:00:03]} 43. Be5 {[%clk 0:00:26]}  Kd7 {[%clk 0:00:04]} 44. c5 {[%clk 0:00:27]}  g6 {[%clk 0:00:04]} 45. c6+ {[%clk 0:00:28]}  Kc8 {[%clk 0:00:04]} 46. d6 {[%clk 0:00:28]}  a6 {[%clk 0:00:05]} 47. d7+ {[%clk 0:00:28]}  Kd8 {[%clk 0:00:05]} 48. Bf6+ {[%clk 0:00:28]}  Kc7 {[%clk 0:00:05]} 49. d8=Q+ {[%clk 0:00:28]}  Kxc6 {[%clk 0:00:05]} 50. Be5 {[%clk 0:00:28]}  Kc5 {[%clk 0:00:06]} 51. Qd6+ {[%clk 0:00:28]}  Kc4 {[%clk 0:00:07]} 52. Qd4+ {[%clk 0:00:28]}  Kb5 {[%clk 0:00:07]} 53. a4+ {[%clk 0:00:28]}  Ka5 {[%clk 0:00:06]} 54. Bc7# {[%clk 0:00:28]} 1-0


[Site "https://www.chess.com"]

[Event "Titled Tuesday Blitz June 28 Early 2022"]
[White "Djabri,Massinas"]
[Black "Bachmann, Axel"]
[WhiteFideId "7905726"]
[BlackFideId "3700488"]
[WhiteElo "1941"]
[BlackElo "2587"]
[Result "1-0"]
[Round "02"]
[TimeControl "180+1"]
[Date "2022.06.28"]
[WhiteClock "0:01:25"]
[BlackClock "0:00:45"]

1. d4 {[%clk 0:03:00]}  Nf6 {[%clk 0:02:54]} 2. Bf4 {[%clk 0:03:01]}  g6 {[%clk 0:02:50]} 3. e3 {[%clk 0:03:01]}  Bg7 {[%clk 0:02:51]} 4. Nf3 {[%clk 0:03:02]}  d6 {[%clk 0:02:50]} 5. h3 {[%clk 0:03:02]}  O-O {[%clk 0:02:50]} 6. Be2 {[%clk 0:03:03]}  Nfd7 {[%clk 0:02:51]} 7. O-O {[%clk 0:03:02]}  e5 {[%clk 0:02:51]} 8. Bh2 {[%clk 0:03:02]}  Nc6 {[%clk 0:02:48]} 9. dxe5 {[%clk 0:03:02]}  Ndxe5 {[%clk 0:02:37]} 10. c3 {[%clk 0:03:03]}  f5 {[%clk 0:02:26]} 11. Nbd2 {[%clk 0:03:02]}  Be6 {[%clk 0:02:26]} 12. Nd4 {[%clk 0:03:02]}  Bf7 {[%clk 0:02:24]} 13. N2f3 {[%clk 0:03:02]}  h6 {[%clk 0:02:21]} 14. Nxe5 {[%clk 0:03:00]}  Nxe5 {[%clk 0:02:19]} 15. Nf3 {[%clk 0:03:00]}  Qe7 {[%clk 0:02:17]} 16. Qc2 {[%clk 0:02:57]}  Rae8 {[%clk 0:02:07]} 17. Rfd1 {[%clk 0:02:55]}  Kh8 {[%clk 0:02:05]} 18. Qa4 {[%clk 0:02:51]}  a6 {[%clk 0:02:03]} 19. Qb4 {[%clk 0:02:44]}  b5 {[%clk 0:01:46]} 20. Qa5 {[%clk 0:02:41]}  Ra8 {[%clk 0:01:41]} 21. Nxe5 {[%clk 0:02:42]}  dxe5 {[%clk 0:01:26]} 22. a4 {[%clk 0:02:35]}  Rab8 {[%clk 0:01:12]} 23. axb5 {[%clk 0:02:26]}  axb5 {[%clk 0:01:13]} 24. Bxb5 {[%clk 0:02:08]}  f4 {[%clk 0:01:08]} 25. exf4 {[%clk 0:02:00]}  exf4 {[%clk 0:01:09]} 26. Rd7 {[%clk 0:01:50]}  Qg5 {[%clk 0:01:08]} 27. Qxc7 {[%clk 0:01:45]}  Be5 {[%clk 0:00:53]} 28. Qa7 {[%clk 0:01:25]}  f3 {[%clk 0:00:46]} 29. Bxe5+ {[%clk 0:01:25]}  Qxe5 {[%clk 0:00:45]} 30. Rxf7 {[%clk 0:01:25]} 1-0


[Site "https://www.chess.com"]

[Event "Titled Tuesday Blitz June 28 Early 2022"]
[White "Dobre, Claudiu-Cristian"]
[Black "Flynn, Jacob"]
[WhiteFideId "1211854"]
[BlackFideId "2509393"]
[WhiteElo "2207"]
[BlackElo "1896"]
[Result "1-0"]
[Round "02"]
[TimeControl "180+1"]
[Date "2022.06.28"]
[WhiteClock "0:00:19"]
[BlackClock "0:00:02"]

1. c4 {[%clk 0:03:00]}  Nf6 {[%clk 0:02:57]} 2. Nc3 {[%clk 0:03:00]}  c5 {[%clk 0:02:57]} 3. Nf3 {[%clk 0:02:59]}  Nc6 {[%clk 0:02:55]} 4. e4 {[%clk 0:02:56]}  e6 {[%clk 0:02:37]} 5. Be2 {[%clk 0:02:55]}  d5 {[%clk 0:02:37]} 6. exd5 {[%clk 0:02:55]}  exd5 {[%clk 0:02:35]} 7. d4 {[%clk 0:02:56]}  cxd4 {[%clk 0:02:27]} 8. Nxd4 {[%clk 0:02:55]}  Bc5 {[%clk 0:02:27]} 9. Nb3 {[%clk 0:02:50]}  Bb4 {[%clk 0:02:25]} 10. O-O {[%clk 0:02:49]}  dxc4 {[%clk 0:02:21]} 11. Bxc4 {[%clk 0:02:34]}  O-O {[%clk 0:02:17]} 12. Bg5 {[%clk 0:02:32]}  Qxd1 {[%clk 0:02:09]} 13. Raxd1 {[%clk 0:02:29]}  Bxc3 {[%clk 0:02:02]} 14. bxc3 {[%clk 0:02:26]}  Ne4 {[%clk 0:02:03]} 15. Be3 {[%clk 0:01:48]}  Nxc3 {[%clk 0:02:01]} 16. Rd3 {[%clk 0:01:48]}  Nxa2 {[%clk 0:01:52]} 17. Bc5 {[%clk 0:01:11]}  Re8 {[%clk 0:01:45]} 18. Re3 {[%clk 0:01:11]}  Be6 {[%clk 0:01:35]} 19. Rfe1 {[%clk 0:01:08]}  Nab4 {[%clk 0:01:21]} 20. Bxe6 {[%clk 0:01:02]}  fxe6 {[%clk 0:01:15]} 21. Rxe6 {[%clk 0:01:00]}  Rxe6 {[%clk 0:01:14]} 22. Rxe6 {[%clk 0:01:00]}  Nd5 {[%clk 0:01:05]} 23. Nd4 {[%clk 0:00:53]}  Nxd4 {[%clk 0:01:02]} 24. Bxd4 {[%clk 0:00:52]}  Rc8 {[%clk 0:01:00]} 25. g3 {[%clk 0:00:50]}  a5 {[%clk 0:00:10]} 26. Rd6 {[%clk 0:00:48]}  Nf6 {[%clk 0:00:05]} 27. Rb6 {[%clk 0:00:46]}  Ra8 {[%clk 0:00:02]} 28. Rxb7 {[%clk 0:00:44]}  a4 {[%clk 0:00:02]} 29. g4 {[%clk 0:00:36]}  a3 {[%clk 0:00:02]} 30. f3 {[%clk 0:00:35]}  Ne8 {[%clk 0:00:02]} 31. Be5 {[%clk 0:00:21]}  a2 {[%clk 0:00:02]} 32. Ba1 {[%clk 0:00:20]}  g5 {[%clk 0:00:02]} 33. Rb5 {[%clk 0:00:20]}  h6 {[%clk 0:00:02]} 34. Rb6 {[%clk 0:00:19]} 1-0


[Site "https://www.chess.com"]

[Event "Titled Tuesday Blitz June 28 Early 2022"]
[White "Dushyant Sharma"]
[Black "Bekturov, Tamerlan"]
[WhiteFideId "25065130"]
[BlackFideId "13710184"]
[WhiteElo "2105"]
[BlackElo "2151"]
[Result "0-1"]
[Round "02"]
[TimeControl "180+1"]
[Date "2022.06.28"]
[WhiteClock "0:00:20"]
[BlackClock "0:02:12"]

1. e4 {[%clk 0:03:00]}  c5 {[%clk 0:02:52]} 2. Nf3 {[%clk 0:02:58]}  Nf6 {[%clk 0:02:52]} 3. d4 {[%clk 0:02:59]}  Nxe4 {[%clk 0:02:52]} 4. Bd3 {[%clk 0:02:58]}  d5 {[%clk 0:02:52]} 5. c3 {[%clk 0:02:57]}  Nc6 {[%clk 0:02:51]} 6. O-O {[%clk 0:02:55]}  Bg4 {[%clk 0:02:50]} 7. Be3 {[%clk 0:02:54]}  cxd4 {[%clk 0:02:50]} 8. cxd4 {[%clk 0:02:55]}  e6 {[%clk 0:02:50]} 9. Nc3 {[%clk 0:02:55]}  Nxc3 {[%clk 0:02:50]} 10. bxc3 {[%clk 0:02:56]}  Bd6 {[%clk 0:02:51]} 11. Rb1 {[%clk 0:02:47]}  Qe7 {[%clk 0:02:50]} 12. h3 {[%clk 0:02:46]}  Bh5 {[%clk 0:02:50]} 13. Qe2 {[%clk 0:02:42]}  O-O {[%clk 0:02:48]} 14. Rfe1 {[%clk 0:02:42]}  e5 {[%clk 0:02:47]} 15. dxe5 {[%clk 0:01:51]}  Nxe5 {[%clk 0:02:37]} 16. g4 {[%clk 0:01:51]}  Nxd3 {[%clk 0:02:31]} 17. Qxd3 {[%clk 0:01:35]}  Bg6 {[%clk 0:02:31]} 18. Qxd5 {[%clk 0:01:36]}  Be4 {[%clk 0:02:25]} 19. Qd4 {[%clk 0:00:40]}  Bxf3 {[%clk 0:02:15]} 20. Bh6 {[%clk 0:00:24]}  Qf6 {[%clk 0:02:16]} 21. Qxf6 {[%clk 0:00:24]}  gxf6 {[%clk 0:02:16]} 22. Bxf8 {[%clk 0:00:25]}  Kxf8 {[%clk 0:02:16]} 23. Re3 {[%clk 0:00:24]}  Bc6 {[%clk 0:02:15]} 24. c4 {[%clk 0:00:24]}  Bc5 {[%clk 0:02:15]} 25. Rd3 {[%clk 0:00:22]}  Re8 {[%clk 0:02:15]} 26. Rbd1 {[%clk 0:00:22]}  Re2 {[%clk 0:02:13]} 27. R3d2 {[%clk 0:00:22]}  Re4 {[%clk 0:02:13]} 28. Rd8+ {[%clk 0:00:20]}  Kg7 {[%clk 0:02:13]} 29. Rc1 {[%clk 0:00:20]}  Re2 {[%clk 0:02:12]} 0-1


[Site "https://www.chess.com"]

[Event "Titled Tuesday Blitz June 28 Early 2022"]
[White "Elgersma, Onno"]
[Black "Goltsev, Dmitry"]
[WhiteFideId "1053531"]
[BlackFideId "24176710"]
[WhiteElo "2304"]
[BlackElo "2258"]
[Result "0-1"]
[Round "02"]
[TimeControl "180+1"]
[Date "2022.06.28"]
[WhiteClock "0:00:12"]
[BlackClock "0:01:12"]

1. e4 {[%clk 0:03:00]}  e6 {[%clk 0:02:59]} 2. d4 {[%clk 0:02:59]}  d5 {[%clk 0:03:00]} 3. Nd2 {[%clk 0:02:59]}  c5 {[%clk 0:03:00]} 4. exd5 {[%clk 0:02:56]}  exd5 {[%clk 0:03:01]} 5. Ngf3 {[%clk 0:02:51]}  Nc6 {[%clk 0:03:01]} 6. Bb5 {[%clk 0:02:44]}  Nf6 {[%clk 0:03:01]} 7. O-O {[%clk 0:02:44]}  Be7 {[%clk 0:02:50]} 8. dxc5 {[%clk 0:02:42]}  Bxc5 {[%clk 0:02:51]} 9. Re1+ {[%clk 0:02:41]}  Be6 {[%clk 0:02:51]} 10. Nb3 {[%clk 0:02:36]}  Bb6 {[%clk 0:02:51]} 11. Nbd4 {[%clk 0:02:26]}  O-O {[%clk 0:02:51]} 12. c3 {[%clk 0:02:16]}  Nxd4 {[%clk 0:02:47]} 13. Nxd4 {[%clk 0:02:15]}  Ne4 {[%clk 0:02:45]} 14. Be3 {[%clk 0:02:14]}  a6 {[%clk 0:02:39]} 15. Bd3 {[%clk 0:02:09]}  Qd6 {[%clk 0:02:29]} 16. a4 {[%clk 0:01:46]}  Rfe8 {[%clk 0:02:15]} 17. a5 {[%clk 0:01:41]}  Bc7 {[%clk 0:02:07]} 18. f4 {[%clk 0:01:40]}  Bd7 {[%clk 0:02:01]} 19. Rf1 {[%clk 0:01:41]}  Nxc3 {[%clk 0:02:00]} 20. bxc3 {[%clk 0:01:36]}  Rxe3 {[%clk 0:02:00]} 21. Qd2 {[%clk 0:01:31]}  Rae8 {[%clk 0:01:59]} 22. g3 {[%clk 0:01:23]}  Bb8 {[%clk 0:01:46]} 23. Rae1 {[%clk 0:01:15]}  Qe7 {[%clk 0:01:43]} 24. Rxe3 {[%clk 0:01:01]}  Qxe3+ {[%clk 0:01:44]} 25. Qxe3 {[%clk 0:01:02]}  Rxe3 {[%clk 0:01:45]} 26. Rd1 {[%clk 0:01:02]}  Bg4 {[%clk 0:01:24]} 27. Rd2 {[%clk 0:01:02]}  Re1+ {[%clk 0:01:24]} 28. Kf2 {[%clk 0:00:54]}  Rc1 {[%clk 0:01:25]} 29. Rc2 {[%clk 0:00:45]}  Rh1 {[%clk 0:01:24]} 30. Kg2 {[%clk 0:00:44]}  Ra1 {[%clk 0:01:24]} 31. h3 {[%clk 0:00:24]}  Bc8 {[%clk 0:01:19]} 32. Re2 {[%clk 0:00:20]}  Kf8 {[%clk 0:01:19]} 33. Bxh7 {[%clk 0:00:13]}  Rxa5 {[%clk 0:01:17]} 34. Bf5 {[%clk 0:00:13]}  Rc5 {[%clk 0:01:15]} 35. Bxc8 {[%clk 0:00:13]}  Rxc8 {[%clk 0:01:16]} 36. Re3 {[%clk 0:00:14]}  Ba7 {[%clk 0:01:16]} 37. Rd3 {[%clk 0:00:11]}  Bxd4 {[%clk 0:01:16]} 38. Rxd4 {[%clk 0:00:12]}  Rxc3 {[%clk 0:01:15]} 39. Rxd5 {[%clk 0:00:12]}  b5 {[%clk 0:01:15]} 40. Rd7 {[%clk 0:00:12]}  a5 {[%clk 0:01:13]} 41. Ra7 {[%clk 0:00:11]}  a4 {[%clk 0:01:13]} 42. g4 {[%clk 0:00:09]}  Rb3 {[%clk 0:01:12]} 43. f5 {[%clk 0:00:09]}  a3 {[%clk 0:01:13]} 44. g5 {[%clk 0:00:10]}  b4 {[%clk 0:01:10]} 45. g6 {[%clk 0:00:10]}  fxg6 {[%clk 0:01:10]} 46. fxg6 {[%clk 0:00:11]}  Rb2+ {[%clk 0:01:09]} 47. Kg3 {[%clk 0:00:12]}  a2 {[%clk 0:01:10]} 48. Rf7+ {[%clk 0:00:12]}  Ke8 {[%clk 0:01:10]} 49. Ra7 {[%clk 0:00:12]}  b3 {[%clk 0:01:11]} 50. h4 {[%clk 0:00:12]}  Rb1 {[%clk 0:01:11]} 51. h5 {[%clk 0:00:12]}  a1=Q {[%clk 0:01:11]} 52. Rxa1 {[%clk 0:00:12]}  Rxa1 {[%clk 0:01:12]} 0-1


[Site "https://www.chess.com"]